[Event "Bundesturnier Hauptturnier 1 2024"]
[Site "Olten"]
[Date "2024.05.10"]
[Round "3.12"]
[White "Manko, Mariia"]
[Black "Musaelyan, Arshavir"]
[Result "1-0"]
[ECO "A57"]
[WhiteElo "2247"]
[BlackElo "1995"]
[Annotator "RC"]
[PlyCount "87"]
[EventDate "2024.05.09"]
[EventType "tourn"]
[EventCountry "SUI"]
[SourceTitle "playchess.com"]
[Source "ChessBase"]
[SourceQuality "1"]
[TimeControl "5400+30"]

1. d4 {[%emt 0:02:03]} Nf6 {[%emt 0:00:12]} 2. c4 {[%emt 0:00:07]} c5 {[%emt 0:00:13]} 3. d5 {[%emt 0:00:07]} b5 {[%emt 0:00:07]} 4. cxb5 {[%emt 0:01:04]} a6 {[%emt 0:00:04]} 5. e3 {[%emt 0:00:35]} axb5 {[%emt 0:00:24]} 6. Bxb5 {[%emt 0:05:30]} Qa5+ {[%emt 0:00:10]} 7. Nc3 {[%emt 0:00:33]} Bb7 {[%emt 0:00:07]} 8. Bd2 {[%emt 0:10:01]} Qb6 {[%emt 0:00:07]} 9. a4 {[%emt 0:00:46]} Nxd5 {[%emt 0:00:54]} 10. Nf3 {[%emt 0:01:50]} e6 {[%emt 0:00:16]} 11. O-O {[%emt 0:00:33]} Be7 {[%emt 0:00:14]} 12. e4 {[%emt 0:01:40]} Nb4 {[%emt 0:00:26]} 13. Bf4 {[%emt 0:03:03]} Qd8 {[%emt 0:00:12]} 14. Ne5 {[%emt 0:06:16]} Bc8 {[%emt 0:08:08]} 15. Qh5 {[%emt 0:09:45]} O-O {[%emt 0:00:48]} 16. Rad1 {[%emt 0:02:34]} d5 {[%emt 0:25:00]} 17. exd5 {[%emt 0:15:39]} exd5 {[%emt 0:00:56]} 18. Nxd5 {[%emt 0:08:49]} Nxd5 {[%emt 0:00:34]} 19. Rxd5 {[%emt 0:01:20]} Qxd5 {[%emt 0:06:34]} 20. Bc4 {[%emt 0:01:26]} Qd8 {[%emt 0:11:19]} 21. Nxf7 {[%emt 0:08:10]} Rxf7 {[%emt 0:02:32]} 22. Qxf7+ {[%emt 0:00:17]} Kh8 {[%emt 0:00:10]} 23. Re1 {[%emt 0:03:28]} Nc6 {[%emt 0:13:22]} 24. Bc7 {[%emt 0:06:29]} Be6 {[%emt 0:02:37]} 25. Qxe6 {[%emt 0:02:04]} Qxc7 {[%emt 0:00:33]} 26. Bd5 {[%emt 0:00:13]} Rf8 {[%emt 0:14:49]} 27. Qxc6 {[%emt 0:01:15]} Qf4 {[%emt 0:03:29]} 28. Rf1 {[%emt 0:01:43]} Qb4 {[%emt 0:01:22]} 29. b3 {[%emt 0:00:52]} Bf6 {[%emt 0:02:28]} 30. Qd6 {[%emt 0:02:01]} Rd8 {[%emt 0:00:10]} 31. Qe6 {[%emt 0:00:19]} Bd4 {[%emt 0:01:15]} 32. Qe7 {[%emt 0:01:13]} Bf6 {[%emt 0:00:25]} 33. Qf7 {[%emt 0:00:25]} Qd2 {[%emt 0:01:22]} 34. Be4 {[%emt 0:01:15]} Qf4 {[%emt 0:02:39]} 35. Bd5 {[%emt 0:01:01]} Qd6 {[%emt 0:00:42]} 36. Bf3 {[%emt 0:00:53]} Be5 {[%emt 0:01:34]} 37. g3 {[%emt 0:00:18]} Rf8 {[%emt 0:00:43]} 38. Qd5 {[%emt 0:00:10]} Qf6 {[%emt 0:02:01]} 39. Kg2 {[%emt 0:00:05]} Bd4 {[%emt 0:00:11]} 40. Qc6 {[%emt 0:00:49]} Qf7 {[%emt 0:00:37]} 41. Qb7 {[%emt 0:00:22]} Qf6 {[%emt 0:00:25]} 42. a5 {[%emt 0:00:24]} Qd6 {[%emt 0:00:43]} 43. a6 {[%emt 0:00:36]} Rb8 {[%emt 0:00:34]} 44. a7 {[%emt 0:00:44]} 1-0

[Event "Bundesturnier Hauptturnier 1 2024"]
[Site "Olten"]
[Date "2024.05.10"]
[Round "4.1"]
[White "Willems, Niels"]
[Black "Baenziger, Fabian"]
[Result "1/2-1/2"]
[ECO "A17"]
[WhiteElo "2329"]
[BlackElo "2415"]
[Annotator "ChessBase"]
[PlyCount "32"]
[EventDate "2024.05.09"]
[EventType "tourn"]
[EventCountry "SUI"]
[SourceTitle "playchess.com"]
[Source "ChessBase"]
[SourceQuality "1"]
[TimeControl "5400+30"]

1. c4 {[%emt 0:00:04]} e6 {[%emt 0:00:21]} 2. Nc3 {[%emt 0:00:33]} d5 {[%emt 0:00:15]} 3. e3 {[%emt 0:00:06]} Nf6 {[%emt 0:00:29]} 4. Nf3 {[%emt 0:00:06]} Bd6 {[%emt 0:00:29]} 5. b3 {[%emt 0:03:47]} c5 {[%emt 0:01:41]} 6. cxd5 {[%emt 0:09:55]} exd5 {[%emt 0:00:15]} 7. Bb2 {[%emt 0:02:05]} Nc6 {[%emt 0:00:50]} 8. Bb5 {[%emt 0:08:19]} O-O {[%emt 0:06:59]} 9. d4 {[%emt 0:03:03]} cxd4 {[%emt 0:03:08]} 10. Nxd4 {[%emt 0:00:24]} Nxd4 {[%emt 0:01:51]} 11. Qxd4 {[%emt 0:00:17]} a6 {[%emt 0:00:06]} 12. Be2 {[%emt 0:01:00]} Re8 {[%emt 0:00:05]} 13. Rd1 {[%emt 0:04:12]} Be5 {[%emt 0:09:10]} 14. Qd2 {[%emt 0:01:11]} Bf5 {[%emt 0:01:37]} 15. O-O {[%emt 0:03:54]} Rc8 {[%emt 0:03:00]} 16. Bf3 {[%emt 0:02:30]} Bg4 {[%emt 0:10:02]} 1/2-1/2

[Event "Bundesturnier Hauptturnier 1 2024"]
[Site "Olten"]
[Date "2024.05.10"]
[Round "4.2"]
[White "Sutter, Oliver"]
[Black "Loeffler, Markus"]
[Result "1-0"]
[ECO "A34"]
[WhiteElo "2304"]
[BlackElo "2238"]
[Annotator "ChessBase"]
[PlyCount "107"]
[EventDate "2024.05.09"]
[EventType "tourn"]
[EventCountry "SUI"]
[SourceTitle "playchess.com"]
[Source "ChessBase"]
[SourceQuality "1"]
[TimeControl "5400+30"]

1. Nf3 {[%emt 0:00:19]} c5 {[%emt 0:01:36]} 2. c4 {[%emt 0:00:17]} Nc6 {[%emt 0:00:41]} 3. Nc3 {[%emt 0:00:17]} e5 {[%emt 0:02:19]} 4. e3 {[%emt 0:00:50]} Nf6 {[%emt 0:00:47]} 5. d4 {[%emt 0:00:34]} cxd4 {[%emt 0:00:51]} 6. exd4 {[%emt 0:00:08]} e4 {[%emt 0:00:20]} 7. Ne5 {[%emt 0:03:32]} Bb4 {[%emt 0:04:19]} 8. Be2 {[%emt 0:04:19]} Qa5 {[%emt 0:02:06]} 9. Nxc6 {[%emt 0:00:42]} dxc6 {[%emt 0:02:59]} 10. Qc2 {[%emt 0:12:07]} O-O {[%emt 0:03:41]} 11. h3 {[%emt 0:03:53]} Rd8 {[%emt 0:12:36]} 12. Be3 {[%emt 0:00:34]} c5 {[%emt 0:00:44]} 13. d5 {[%emt 0:03:06]} b5 {[%emt 0:01:27]} 14. O-O {[%emt 0:01:29]} Bxc3 {[%emt 0:05:15]} 15. bxc3 {[%emt 0:02:01]} bxc4 {[%emt 0:02:29]} 16. Bxc4 {[%emt 0:06:51]} Ba6 {[%emt 0:05:17]} 17. Bxa6 {[%emt 0:01:54]} Qxa6 {[%emt 0:00:01]} 18. c4 {[%emt 0:00:26]} Re8 {[%emt 0:04:17]} 19. Rab1 {[%emt 0:02:26]} Nd7 {[%emt 0:00:35]} 20. Rb5 {[%emt 0:01:24]} Rac8 {[%emt 0:01:45]} 21. Rfb1 {[%emt 0:00:44]} f5 {[%emt 0:00:48]} 22. Qc3 {[%emt 0:06:15]} Qd6 {[%emt 0:07:49]} 23. Rb7 {[%emt 0:04:54]} Rc7 {[%emt 0:02:08]} 24. Qc1 {[%emt 0:27:09]} h6 {[%emt 0:02:32]} 25. Bf4 {[%emt 0:02:59]} Ne5 {[%emt 0:00:02]} 26. Qc3 {[%emt 0:02:09]} Ree7 {[%emt 0:06:49]} 27. Rxc7 {[%emt 0:02:38]} Qxc7 {[%emt 0:00:06]} 28. Rb5 {[%emt 0:02:16]} Nf3+ {[%emt 0:13:47]} 29. Qxf3 {[%emt 0:00:13]} exf3 {[%emt 0:00:02]} 30. Bxc7 {[%emt 0:00:04]} Rxc7 {[%emt 0:00:04]} 31. gxf3 {[%emt 0:00:09]} Kf7 {[%emt 0:00:31]} 32. f4 {[%emt 0:04:26]} Ke7 {[%emt 0:00:28]} 33. Ra5 {[%emt 0:00:10]} Kd7 {[%emt 0:03:09]} 34. Kg2 {[%emt 0:00:41]} Kc8 {[%emt 0:00:40]} 35. Ra6 {[%emt 0:01:04]} Kb7 {[%emt 0:00:18]} 36. Re6 {[%emt 0:00:38]} Kc8 {[%emt 0:00:57]} 37. Kg3 {[%emt 0:00:19]} Kd7 {[%emt 0:00:17]} 38. Rg6 {[%emt 0:00:26]} Ke8 {[%emt 0:00:13]} 39. Kh4 {[%emt 0:00:26]} Kf7 {[%emt 0:00:27]} 40. Rc6 {[%emt 0:00:37]} Rb7 {[%emt 0:00:31]} 41. Rxc5 {[%emt 0:00:12]} Rb2 {[%emt 0:00:04]} 42. Rc7+ {[%emt 0:01:12]} Kf6 {[%emt 0:00:06]} 43. Rxa7 {[%emt 0:00:14]} Rxf2 {[%emt 0:00:04]} 44. Ra6+ {[%emt 0:00:12]} Kf7 {[%emt 0:00:26]} 45. Kg3 {[%emt 0:00:19]} Rc2 {[%emt 0:00:15]} 46. Rc6 {[%emt 0:01:36]} Rxa2 {[%emt 0:00:07]} 47. c5 {[%emt 0:00:10]} Ra3+ {[%emt 0:00:16]} 48. Kg2 {[%emt 0:00:04]} Ra2+ {[%emt 0:00:28]} 49. Kf3 {[%emt 0:00:13]} Ra3+ {[%emt 0:00:14]} 50. Ke2 {[%emt 0:00:34]} Rxh3 {[%emt 0:01:44]} 51. Rc7+ {[%emt 0:00:10]} Kf6 {[%emt 0:00:19]} 52. d6 {[%emt 0:00:23]} Rc3 {[%emt 0:02:14]} 53. c6 {[%emt 0:00:27]} Rc5 {[%emt 0:00:48]} 54. d7 {[%emt 0:00:26]} 1-0

[Event "Bundesturnier Hauptturnier 1 2024"]
[Site "Olten"]
[Date "2024.05.10"]
[Round "4.3"]
[White "Gryshko, Vitalii"]
[Black "Emery, Stephane"]
[Result "1-0"]
[ECO "B97"]
[WhiteElo "2316"]
[BlackElo "2094"]
[Annotator "ChessBase"]
[PlyCount "53"]
[EventDate "2024.05.09"]
[EventType "tourn"]
[EventCountry "SUI"]
[SourceTitle "playchess.com"]
[Source "ChessBase"]
[SourceQuality "1"]
[TimeControl "5400+30"]

1. e4 {[%emt 0:00:01]} c5 {[%emt 0:00:06]} 2. Nf3 {[%emt 0:00:04]} d6 {[%emt 0:00:06]} 3. d4 {[%emt 0:00:28]} cxd4 {[%emt 0:00:06]} 4. Nxd4 {[%emt 0:00:04]} Nf6 {[%emt 0:00:07]} 5. Nc3 {[%emt 0:00:03]} a6 {[%emt 0:00:06]} 6. Bg5 {[%emt 0:00:59]} e6 {[%emt 0:01:11]} 7. f4 {[%emt 0:00:21]} Qb6 {[%emt 0:00:49]} 8. Qd2 {[%emt 0:01:19]} Qxb2 {[%emt 0:00:16]} 9. Rb1 {[%emt 0:00:08]} Qa3 {[%emt 0:00:06]} 10. e5 {[%emt 0:00:32]} dxe5 {[%emt 0:06:29]} 11. fxe5 {[%emt 0:00:04]} Nfd7 {[%emt 0:05:54]} 12. Ne4 {[%emt 0:00:13]} Qxa2 {[%emt 0:07:15]} 13. Rd1 {[%emt 0:00:04]} Qd5 {[%emt 0:04:34]} 14. Qe3 {[%emt 0:00:19]} Qxe5 {[%emt 0:01:53]} 15. c3 {[%emt 0:02:50]} Nc6 {[%emt 0:07:03]} 16. Nxc6 {[%emt 0:03:50]} bxc6 {[%emt 0:00:06]} 17. Bf4 {[%emt 0:00:30]} Qa5 {[%emt 0:03:31]} 18. Nd6+ {[%emt 0:01:59]} Bxd6 {[%emt 0:00:18]} 19. Bxd6 {[%emt 0:00:05]} Bb7 {[%emt 0:09:47]} 20. Be2 {[%emt 0:03:56]} Qb6 {[%emt 0:10:00]} 21. Qg5 {[%emt 0:02:02]} Qd8 {[%emt 0:02:16]} 22. Qxg7 {[%emt 0:00:19]} Qf6 {[%emt 0:00:18]} 23. Qxf6 {[%emt 0:00:41]} Nxf6 {[%emt 0:00:08]} 24. Be5 {[%emt 0:00:22]} Ke7 {[%emt 0:00:35]} 25. Rb1 {[%emt 0:00:43]} Rhb8 {[%emt 0:02:21]} 26. Bxb8 {[%emt 0:00:06]} Rxb8 {[%emt 0:00:05]} 27. Bxa6 {[%emt 0:00:08]} 1-0

[Event "Bundesturnier Hauptturnier 1 2024"]
[Site "Olten"]
[Date "2024.05.10"]
[Round "4.4"]
[White "Toktomushev, Teimur"]
[Black "Hirzel, Cedric"]
[Result "1/2-1/2"]
[ECO "D37"]
[WhiteElo "2295"]
[BlackElo "2086"]
[Annotator "ChessBase"]
[PlyCount "100"]
[EventDate "2024.05.09"]
[EventType "tourn"]
[EventCountry "SUI"]
[SourceTitle "playchess.com"]
[Source "ChessBase"]
[SourceQuality "1"]
[TimeControl "5400+30"]

1. d4 {[%emt 0:06:48]} Nf6 {[%emt 0:00:19]} 2. c4 {[%emt 0:00:16]} e6 {[%emt 0:00:08]} 3. Nf3 {[%emt 0:00:05]} d5 {[%emt 0:00:08]} 4. Nc3 {[%emt 0:00:11]} Be7 {[%emt 0:00:57]} 5. Bf4 {[%emt 0:00:10]} O-O {[%emt 0:00:16]} 6. e3 {[%emt 0:00:05]} c5 {[%emt 0:00:09]} 7. dxc5 {[%emt 0:00:17]} Bxc5 {[%emt 0:00:09]} 8. cxd5 {[%emt 0:00:26]} Nxd5 {[%emt 0:04:44]} 9. Nxd5 {[%emt 0:00:15]} Qxd5 {[%emt 0:00:28]} 10. Qxd5 {[%emt 0:05:54]} exd5 {[%emt 0:00:26]} 11. a3 {[%emt 0:00:20]} Nc6 {[%emt 0:02:10]} 12. Bb5 {[%emt 0:06:49]} Bb6 {[%emt 0:04:05]} 13. Rc1 {[%emt 0:02:08]} Bd7 {[%emt 0:01:12]} 14. O-O {[%emt 0:01:36]} Rac8 {[%emt 0:00:49]} 15. Bd6 {[%emt 0:22:32]} Rfd8 {[%emt 0:09:02]} 16. Bc5 {[%emt 0:01:33]} Bxc5 {[%emt 0:03:22]} 17. Rxc5 {[%emt 0:00:14]} Ne7 {[%emt 0:01:52]} 18. Rxc8 {[%emt 0:00:29]} Nxc8 {[%emt 0:03:54]} 19. Bxd7 {[%emt 0:11:25]} Rxd7 {[%emt 0:00:10]} 20. Rc1 {[%emt 0:00:23]} Ne7 {[%emt 0:08:53]} 21. Kf1 {[%emt 0:09:17]} Nc6 {[%emt 0:01:50]} 22. Ne5 {[%emt 0:11:54]} Rd6 {[%emt 0:01:08]} 23. Ke2 {[%emt 0:03:55]} Kf8 {[%emt 0:00:20]} 24. Nxc6 {[%emt 0:01:01]} bxc6 {[%emt 0:00:14]} 25. Kd3 {[%emt 0:00:22]} Ke7 {[%emt 0:00:08]} 26. Rc5 {[%emt 0:03:54]} Rf6 {[%emt 0:09:56]} 27. Ke2 {[%emt 0:02:27]} Rd6 {[%emt 0:01:53]} 28. Ra5 {[%emt 0:02:10]} Rd7 {[%emt 0:00:08]} 29. Kd3 {[%emt 0:00:15]} Kd6 {[%emt 0:01:38]} 30. Kd4 {[%emt 0:00:36]} Re7 {[%emt 0:01:15]} 31. b4 {[%emt 0:02:03]} Rb7 {[%emt 0:04:41]} 32. Ra4 {[%emt 0:04:11]} Re7 {[%emt 0:02:51]} 33. Ra6 {[%emt 0:00:56]} Rb7 {[%emt 0:00:13]} 34. Ra5 {[%emt 0:01:03]} Re7 {[%emt 0:01:25]} 35. f3 {[%emt 0:01:02]} f5 {[%emt 0:00:07]} 36. h3 {[%emt 0:00:48]} g6 {[%emt 0:02:47]} 37. h4 {[%emt 0:00:24]} Rc7 {[%emt 0:04:53]} 38. Ra6 {[%emt 0:00:21]} Rb7 {[%emt 0:00:10]} 39. Ra4 {[%emt 0:00:40]} Re7 {[%emt 0:00:22]} 40. Ra5 {[%emt 0:00:10]} Rc7 {[%emt 0:00:05]} 41. Rc5 {[%emt 0:01:01]} Rb7 {[%emt 0:00:20]} 42. g3 {[%emt 0:00:28]} Rb5 {[%emt 0:06:32]} 43. Rxb5 {[%emt 0:00:32]} cxb5 {[%emt 0:00:01]} 44. g4 {[%emt 0:00:31]} fxg4 {[%emt 0:00:13]} 45. fxg4 {[%emt 0:00:03]} h6 {[%emt 0:00:48]} 46. e4 {[%emt 0:00:54]} dxe4 {[%emt 0:00:06]} 47. Kxe4 {[%emt 0:00:02]} Ke6 {[%emt 0:00:10]} 48. Kd4 {[%emt 0:00:51]} Kd6 {[%emt 0:00:07]} 49. Ke4 {[%emt 0:00:07]} Ke6 {[%emt 0:00:06]} 50. Kd4 {[%emt 0:01:02]} Kf6 {[%emt 0:00:24]} 1/2-1/2

[Event "Bundesturnier Hauptturnier 1 2024"]
[Site "Olten"]
[Date "2024.05.10"]
[Round "4.5"]
[White "Drechsler, Christoph"]
[Black "Gantner, Matthias"]
[Result "0-1"]
[ECO "D05"]
[WhiteElo "2099"]
[BlackElo "2237"]
[Annotator "ChessBase"]
[PlyCount "104"]
[EventDate "2024.05.09"]
[EventType "tourn"]
[EventCountry "SUI"]
[SourceTitle "playchess.com"]
[Source "ChessBase"]
[SourceQuality "1"]
[TimeControl "5400+30"]

1. d4 {[%emt 0:00:04]} Nf6 {[%emt 0:00:05]} 2. Nf3 {[%emt 0:00:04]} d5 {[%emt 0:00:07]} 3. e3 {[%emt 0:00:06]} e6 {[%emt 0:00:06]} 4. Bd3 {[%emt 0:00:07]} c5 {[%emt 0:00:08]} 5. c3 {[%emt 0:00:05]} Nc6 {[%emt 0:00:08]} 6. Nbd2 {[%emt 0:00:09]} Bd6 {[%emt 0:00:07]} 7. O-O {[%emt 0:00:06]} O-O {[%emt 0:00:09]} 8. dxc5 {[%emt 0:00:04]} Bxc5 {[%emt 0:00:06]} 9. b4 {[%emt 0:00:03]} Bd6 {[%emt 0:02:34]} 10. Bb2 {[%emt 0:00:06]} b6 {[%emt 0:11:55]} 11. a3 {[%emt 0:01:13]} a5 {[%emt 0:13:19]} 12. b5 {[%emt 0:02:36]} Ne5 {[%emt 0:00:12]} 13. Nxe5 {[%emt 0:01:45]} Bxe5 {[%emt 0:00:06]} 14. Nf3 {[%emt 0:01:16]} Bd6 {[%emt 0:01:21]} 15. c4 {[%emt 0:00:28]} dxc4 {[%emt 0:09:09]} 16. Bxf6 {[%emt 0:10:26]} gxf6 {[%emt 0:00:08]} 17. Be4 {[%emt 0:00:11]} Ra7 {[%emt 0:15:10]} 18. Nd4 {[%emt 0:00:37]} Rd7 {[%emt 0:02:14]} 19. Qh5 {[%emt 0:33:16]} f5 {[%emt 0:00:23]} 20. Bc6 {[%emt 0:00:46]} Rc7 {[%emt 0:01:13]} 21. Rfd1 {[%emt 0:16:26]} Qf6 {[%emt 0:01:02]} 22. Rac1 {[%emt 0:11:17]} Bxa3 {[%emt 0:05:00]} 23. Rxc4 {[%emt 0:00:38]} Kh8 {[%emt 0:01:13]} 24. Nc2 {[%emt 0:00:43]} Bc5 {[%emt 0:02:43]} 25. Rh4 {[%emt 0:03:17]} Qg6 {[%emt 0:04:29]} 26. Qe2 {[%emt 0:00:27]} Bb7 {[%emt 0:02:43]} 27. Bxb7 {[%emt 0:05:11]} Rxb7 {[%emt 0:00:06]} 28. Rh3 {[%emt 0:00:33]} Rbb8 {[%emt 0:02:52]} 29. Nd4 {[%emt 0:04:48]} Rbd8 {[%emt 0:01:56]} 30. Nc6 {[%emt 0:00:49]} Rxd1+ {[%emt 0:02:08]} 31. Qxd1 {[%emt 0:00:02]} Qf6 {[%emt 0:04:58]} 32. g3 {[%emt 0:01:28]} Rg8 {[%emt 0:04:47]} 33. Qh5 {[%emt 0:01:32]} Rg7 {[%emt 0:00:47]} 34. Qd1 {[%emt 0:00:58]} Rg4 {[%emt 0:05:28]} 35. Kg2 {[%emt 0:01:01]} a4 {[%emt 0:02:06]} 36. f4 {[%emt 0:01:27]} a3 {[%emt 0:00:32]} 37. Ne5 {[%emt 0:00:22]} Rg8 {[%emt 0:00:49]} 38. Qd7 {[%emt 0:00:38]} Qe7 {[%emt 0:02:00]} 39. Qd2 {[%emt 0:01:14]} f6 {[%emt 0:03:14]} 40. Nf3 {[%emt 0:00:51]} Ra8 {[%emt 0:00:33]} 41. Qa2 {[%emt 0:02:08]} Bxe3 {[%emt 0:00:22]} 42. Rh5 {[%emt 0:01:02]} Qd7 {[%emt 0:01:25]} 43. Qa1 {[%emt 0:00:19]} Qe7 {[%emt 0:00:40]} 44. Ng5 {[%emt 0:00:15]} e5 {[%emt 0:00:51]} 45. Rxh7+ {[%emt 0:00:42]} Qxh7 {[%emt 0:00:07]} 46. Nxh7 {[%emt 0:00:01]} Kxh7 {[%emt 0:00:48]} 47. fxe5 {[%emt 0:00:48]} a2 {[%emt 0:00:27]} 48. exf6 {[%emt 0:00:47]} Kg6 {[%emt 0:00:14]} 49. h4 {[%emt 0:00:57]} Bd4 {[%emt 0:00:43]} 50. h5+ {[%emt 0:00:27]} Kxh5 {[%emt 0:00:25]} 51. Qd1+ {[%emt 0:00:52]} Kg6 {[%emt 0:00:11]} 52. g4 {[%emt 0:00:28]} a1=Q {[%emt 0:00:10]} 0-1

[Event "Bundesturnier Hauptturnier 1 2024"]
[Site "Olten"]
[Date "2024.05.10"]
[Round "4.6"]
[White "Gut, Lionel"]
[Black "Manko, Mariia"]
[Result "1/2-1/2"]
[ECO "A57"]
[WhiteElo "2124"]
[BlackElo "2247"]
[Annotator "ChessBase"]
[PlyCount "75"]
[EventDate "2024.05.09"]
[EventType "tourn"]
[EventCountry "SUI"]
[SourceTitle "playchess.com"]
[Source "ChessBase"]
[SourceQuality "1"]
[TimeControl "5400+30"]

1. d4 {[%emt 0:00:04]} Nf6 {[%emt 0:07:42]} 2. c4 {[%emt 0:00:07]} c5 {[%emt 0:00:21]} 3. d5 {[%emt 0:00:03]} b5 {[%emt 0:00:27]} 4. Nf3 {[%emt 0:00:09]} Bb7 {[%emt 0:00:08]} 5. Qc2 {[%emt 0:18:47]} bxc4 {[%emt 0:00:38]} 6. e4 {[%emt 0:00:46]} e6 {[%emt 0:00:26]} 7. Bxc4 {[%emt 0:00:55]} exd5 {[%emt 0:00:27]} 8. exd5 {[%emt 0:00:08]} Bxd5 {[%emt 0:01:22]} 9. Bxd5 {[%emt 0:05:20]} Nxd5 {[%emt 0:00:08]} 10. O-O {[%emt 0:00:09]} Be7 {[%emt 0:00:35]} 11. Re1 {[%emt 0:02:08]} Na6 {[%emt 0:00:40]} 12. Qc4 {[%emt 0:07:36]} Nac7 {[%emt 0:00:50]} 13. Bg5 {[%emt 0:04:01]} Nb6 {[%emt 0:31:16]} 14. Qxc5 {[%emt 0:05:36]} Ne6 {[%emt 0:00:13]} 15. Qxe7+ {[%emt 0:00:13]} Qxe7 {[%emt 0:00:06]} 16. Bxe7 {[%emt 0:00:03]} Kxe7 {[%emt 0:00:06]} 17. Nc3 {[%emt 0:00:14]} Rhd8 {[%emt 0:08:50]} 18. Rad1 {[%emt 0:01:05]} Rac8 {[%emt 0:03:08]} 19. Re2 {[%emt 0:02:08]} d5 {[%emt 0:03:50]} 20. Nd4 {[%emt 0:03:55]} Kf6 {[%emt 0:02:44]} 21. g3 {[%emt 0:06:01]} Rc4 {[%emt 0:05:58]} 22. Nf3 {[%emt 0:06:43]} g6 {[%emt 0:13:42]} 23. Red2 {[%emt 0:05:31]} Nc7 {[%emt 0:01:54]} 24. Kg2 {[%emt 0:03:36]} Rc6 {[%emt 0:01:41]} 25. Nd4 {[%emt 0:00:49]} Rcd6 {[%emt 0:00:21]} 26. b3 {[%emt 0:00:30]} Ke7 {[%emt 0:06:24]} 27. Re2+ {[%emt 0:03:42]} Kf6 {[%emt 0:02:00]} 28. Red2 {[%emt 0:00:56]} Ke7 {[%emt 0:00:19]} 29. Rc1 {[%emt 0:01:33]} Kf6 {[%emt 0:01:16]} 30. Ncb5 {[%emt 0:01:10]} Nxb5 {[%emt 0:01:51]} 31. Nxb5 {[%emt 0:00:02]} R6d7 {[%emt 0:00:37]} 32. Nxa7 {[%emt 0:00:53]} Rxa7 {[%emt 0:00:52]} 33. Rc6+ {[%emt 0:00:03]} Ke5 {[%emt 0:00:15]} 34. Rxb6 {[%emt 0:00:04]} Ke4 {[%emt 0:02:01]} 35. a4 {[%emt 0:02:33]} d4 {[%emt 0:00:17]} 36. Rb4 {[%emt 0:00:40]} f5 {[%emt 0:02:13]} 37. Rb6 {[%emt 0:01:21]} d3 {[%emt 0:00:34]} 38. Re6+ {[%emt 0:04:27]} 1/2-1/2

[Event "Bundesturnier Hauptturnier 1 2024"]
[Site "Olten"]
[Date "2024.05.10"]
[Round "4.7"]
[White "Bauer, Christian"]
[Black "Borner, Daniel"]
[Result "1-0"]
[ECO "B32"]
[WhiteElo "2576"]
[BlackElo "2081"]
[Annotator "ChessBase"]
[PlyCount "81"]
[EventDate "2024.05.09"]
[EventType "tourn"]
[EventCountry "SUI"]
[SourceTitle "playchess.com"]
[Source "ChessBase"]
[SourceQuality "1"]
[TimeControl "5400+30"]

1. e4 {[%emt 0:00:08]} c5 {[%emt 0:00:11]} 2. Nf3 {[%emt 0:00:51]} Nc6 {[%emt 0:00:14]} 3. d4 {[%emt 0:03:23]} cxd4 {[%emt 0:00:08]} 4. Nxd4 {[%emt 0:00:02]} e5 {[%emt 0:00:41]} 5. Nb5 {[%emt 0:00:38]} d6 {[%emt 0:00:17]} 6. g3 {[%emt 0:03:39]} Be7 {[%emt 0:02:55]} 7. Bg2 {[%emt 0:03:00]} Be6 {[%emt 0:01:23]} 8. N1c3 {[%emt 0:01:24]} a6 {[%emt 0:00:48]} 9. Na3 {[%emt 0:00:06]} Nf6 {[%emt 0:01:04]} 10. Nd5 {[%emt 0:01:27]} b5 {[%emt 0:04:03]} 11. c3 {[%emt 0:01:40]} Rb8 {[%emt 0:01:01]} 12. Nc2 {[%emt 0:00:41]} a5 {[%emt 0:00:44]} 13. O-O {[%emt 0:05:27]} O-O {[%emt 0:00:14]} 14. h3 {[%emt 0:06:28]} b4 {[%emt 0:14:13]} 15. Nce3 {[%emt 0:01:12]} Nd7 {[%emt 0:09:55]} 16. Nf5 {[%emt 0:07:41]} Nb6 {[%emt 0:06:10]} 17. Qg4 {[%emt 0:05:56]} Bf6 {[%emt 0:06:09]} 18. Nxb6 {[%emt 0:16:37]} Rxb6 {[%emt 0:02:26]} 19. Be3 {[%emt 0:00:01]} Rb7 {[%emt 0:03:58]} 20. Rfd1 {[%emt 0:00:34]} Rd7 {[%emt 0:01:16]} 21. Qf3 {[%emt 0:04:35]} Qb8 {[%emt 0:20:51]} 22. Rd2 {[%emt 0:06:45]} Bd8 {[%emt 0:01:34]} 23. Rad1 {[%emt 0:01:18]} Bc7 {[%emt 0:00:24]} 24. Qg4 {[%emt 0:09:24]} g6 {[%emt 0:01:36]} 25. Bh6 {[%emt 0:00:05]} Re8 {[%emt 0:02:56]} 26. h4 {[%emt 0:03:32]} f6 {[%emt 0:05:03]} 27. h5 {[%emt 0:04:34]} Kf7 {[%emt 0:00:58]} 28. Be3 {[%emt 0:01:55]} Nd8 {[%emt 0:04:14]} 29. hxg6+ {[%emt 0:02:14]} hxg6 {[%emt 0:00:04]} 30. Qh4 {[%emt 0:00:29]} Kg8 {[%emt 0:02:55]} 31. Nh6+ {[%emt 0:02:05]} Kg7 {[%emt 0:00:21]} 32. Bh3 {[%emt 0:05:35]} Rh8 {[%emt 0:01:54]} 33. Bxe6 {[%emt 0:00:12]} Nxe6 {[%emt 0:00:23]} 34. Qg4 {[%emt 0:00:03]} Nf8 {[%emt 0:02:08]} 35. Nf5+ {[%emt 0:00:05]} Kf7 {[%emt 0:00:33]} 36. Nh4 {[%emt 0:00:46]} Rg8 {[%emt 0:00:31]} 37. Qe2 {[%emt 0:01:03]} Ne6 {[%emt 0:01:11]} 38. Qc4 {[%emt 0:00:32]} Rc8 {[%emt 0:01:12]} 39. Nf5 {[%emt 0:02:09]} Bb6 {[%emt 0:01:55]} 40. Qb5 {[%emt 0:00:23]} Nf8 {[%emt 0:01:20]} 41. Rxd6 {[%emt 0:00:52]} 1-0

[Event "Bundesturnier Hauptturnier 1 2024"]
[Site "Olten"]
[Date "2024.05.10"]
[Round "4.8"]
[White "Joie, Sebastien"]
[Black "Buehler, Michael"]
[Result "1-0"]
[ECO "C45"]
[WhiteElo "2382"]
[BlackElo "2043"]
[Annotator "ChessBase"]
[PlyCount "63"]
[EventDate "2024.05.09"]
[EventType "tourn"]
[EventCountry "SUI"]
[SourceTitle "playchess.com"]
[Source "ChessBase"]
[SourceQuality "1"]
[TimeControl "5400+30"]

1. e4 {[%emt 0:03:12]} e5 {[%emt 0:01:05]} 2. Nf3 {[%emt 0:00:08]} Nc6 {[%emt 0:00:04]} 3. Nc3 {[%emt 0:00:07]} Nf6 {[%emt 0:00:50]} 4. a4 {[%emt 0:00:07]} Be7 {[%emt 0:06:03]} 5. d4 {[%emt 0:00:39]} exd4 {[%emt 0:01:11]} 6. Nxd4 {[%emt 0:00:10]} Nxd4 {[%emt 0:01:15]} 7. Qxd4 {[%emt 0:00:44]} d6 {[%emt 0:00:39]} 8. Bc4 {[%emt 0:00:41]} O-O {[%emt 0:00:36]} 9. O-O {[%emt 0:01:14]} Re8 {[%emt 0:07:09]} 10. Re1 {[%emt 0:15:29]} Nd7 {[%emt 0:10:00]} 11. Nd5 {[%emt 0:00:40]} Ne5 {[%emt 0:00:20]} 12. Nxe7+ {[%emt 0:05:59]} Qxe7 {[%emt 0:00:05]} 13. Bf1 {[%emt 0:03:59]} Qh4 {[%emt 0:03:51]} 14. Ra3 {[%emt 0:02:31]} Nc6 {[%emt 0:04:31]} 15. Qd2 {[%emt 0:05:04]} Bd7 {[%emt 0:03:57]} 16. f4 {[%emt 0:03:44]} Re7 {[%emt 0:05:49]} 17. g3 {[%emt 0:15:24]} Qf6 {[%emt 0:00:27]} 18. Rd3 {[%emt 0:03:45]} Rae8 {[%emt 0:04:13]} 19. Bg2 {[%emt 0:00:06]} a5 {[%emt 0:06:16]} 20. b3 {[%emt 0:01:21]} Nb4 {[%emt 0:01:34]} 21. Rde3 {[%emt 0:00:09]} Bc6 {[%emt 0:14:26]} 22. c4 {[%emt 0:01:50]} h5 {[%emt 0:07:50]} 23. Bb2 {[%emt 0:07:49]} Qg6 {[%emt 0:03:40]} 24. R1e2 {[%emt 0:02:09]} f6 {[%emt 0:06:24]} 25. Qe1 {[%emt 0:00:37]} Kh7 {[%emt 0:01:36]} 26. Bh3 {[%emt 0:01:08]} Bd7 {[%emt 0:02:00]} 27. Bf5 {[%emt 0:00:09]} Bxf5 {[%emt 0:00:52]} 28. exf5 {[%emt 0:00:05]} Qxf5 {[%emt 0:00:28]} 29. Rxe7 {[%emt 0:00:17]} Qc5+ {[%emt 0:01:02]} 30. Qf2 {[%emt 0:00:56]} Qxf2+ {[%emt 0:00:19]} 31. Kxf2 {[%emt 0:00:04]} Nd3+ {[%emt 0:00:06]} 32. Ke3 {[%emt 0:00:38]} 1-0